bitfinex/quotes_BTCUSD_20241110
["timestamp","ask_amount","ask_price","bid_price","bid_amount"]
[1731273541699,0.11178515,79302.0,79297.0,0.26039429]
[1731273541896,0.07435732,79302.0,79301.0,0.126101]
[1731273542104,0.07435732,79302.0,79301.0,0.14658512]
[1731273542238,0.07435732,79302.0,79301.0,0.02048412]
[1731273542453,0.07435732,79302.0,79301.0,0.01260528]
[1731273542454,0.2527341,79302.0,79301.0,0.01260528]
[1731273542631,0.16406193,79302.0,79297.0,0.00030245]
[1731273542831,0.149106,79298.0,79297.0,0.00030245]
[1731273543070,0.2757401,79298.0,79297.0,0.00030245]
[1731273543612,0.2757401,79298.0,79297.0,0.02078666]
[1731273543998,0.6810677,79298.0,79297.0,0.00818099]
[1731273544190,0.6810677,79298.0,79297.0,0.00030245]
[1731273544191,0.55114892,79298.0,79297.0,0.00030245]
[1731273544362,0.126138,79278.0,79277.0,0.000838]
[1731273544602,0.27508021,79278.0,79277.0,0.00871855]
[1731273544984,0.2757721,79278.0,79277.0,0.00871855]
[1731273545379,0.2757721,79278.0,79277.0,0.000838]
[1731273545585,0.33390162,79278.0,79277.0,0.000838]
[1731273545787,0.41515301,79278.0,79277.0,0.000838]
[1731273545932,0.49999237,79278.0,79277.0,0.000838]
[1731273546123,0.42515301,79278.0,79277.0,0.000838]
[1731273546329,0.43015301,79278.0,79277.0,0.000838]
[1731273546535,0.50491856,79278.0,79277.0,0.000838]
[1731273546810,0.50491486,79278.0,79277.0,0.000838]
[1731273547026,0.52360348,79278.0,79277.0,0.000838]
[1731273547229,0.43015301,79278.0,79277.0,0.000838]
[1731273547396,0.5048755,79278.0,79277.0,0.000838]
[1731273547775,0.50489824,79278.0,79277.0,0.000838]
[1731273548151,0.34812065,79278.0,79277.0,0.000838]
[1731273548364,0.29208021,79278.0,79277.0,0.000838]
[1731273549198,0.32942763,79278.0,79277.0,0.000838]
[1731273549375,0.29208021,79278.0,79277.0,0.000838]
[1731273550016,0.3294263,79278.0,79277.0,0.000838]
[1731273550178,0.29208021,79278.0,79277.0,0.000838]
[1731273550890,0.12594221,79278.0,79277.0,0.000838]
[1731273551115,0.252251,79286.0,79277.0,0.000838]
[1731273551116,0.03732062,79292.0,79281.0,0.0814]
[1731273551298,0.12613,79283.0,79282.0,0.0129738]
[1731273551516,0.126132,79282.0,79281.0,0.0814]
[1731273551638,0.126138,79278.0,79277.0,0.000838]
[1731273551835,0.25208021,79278.0,79277.0,0.000838]
[1731273552952,0.27508021,79278.0,79277.0,0.000838]
[1731273553110,0.27708021,79278.0,79277.0,0.000838]
[1731273553286,0.2777721,79278.0,79277.0,0.000838]
[1731273553691,0.2927721,79278.0,79277.0,0.000838]
[1731273553895,0.51287039,79278.0,79277.0,0.000838]
[1731273554099,0.44800202,79278.0,79277.0,0.000838]
[1731273554321,0.39208021,79278.0,79277.0,0.000838]
[1731273554725,0.43272175,79278.0,79277.0,0.000838]
[1731273555239,0.39208021,79278.0,79277.0,0.000838]
[1731273556691,0.39208021,79278.0,79245.0,0.19081178]
[1731273556692,0.007,79257.0,79256.0,0.19081178]
[1731273556891,0.2598051,79257.0,79256.0,0.19081178]
[1731273557148,0.2598051,79257.0,79245.0,0.19081178]
[1731273557149,0.126189,79246.0,79245.0,0.19081178]
[1731273557314,0.126189,79246.0,79245.0,0.21782076]
[1731273557315,0.1266341,79246.0,79245.0,0.21782076]
[1731273557534,0.252351,79255.0,79246.0,0.126189]
[1731273557788,0.1266341,79254.0,79245.0,0.02700898]
[1731273557917,0.1266341,79254.0,79242.0,0.000839]
[1731273557918,0.1266341,79254.0,79247.0,0.252375]
[1731273558140,0.25229,79274.0,79247.0,0.252375]
[1731273558141,0.0372434,79279.0,79254.0,0.0472]
[1731273558478,0.19081178,79280.0,79269.0,0.126152]
[1731273558843,0.252291,79274.0,79254.0,0.0472]
[1731273559052,0.00069189,79269.0,79265.0,0.126158]
[1731273559269,0.00069189,79269.0,79260.0,0.126165]
[1731273559446,0.00069189,79269.0,79261.0,0.126164]
[1731273559447,0.12594221,79268.0,79261.0,0.126164]
[1731273559652,0.12594221,79268.0,79254.0,0.0472]
[1731273559653,0.00069189,79267.0,79254.0,0.0472]
[1731273559853,0.14917,79258.0,79254.0,0.0472]
[1731273560067,0.27511221,79258.0,79254.0,0.0472]
[1731273560278,0.2758041,79258.0,79254.0,0.0472]
[1731273560487,0.1496341,79258.0,79254.0,0.0472]
[1731273560695,0.14894221,79258.0,79254.0,0.0472]
[1731273560851,0.27511221,79258.0,79254.0,0.0472]
[1731273561050,0.27511221,79258.0,79243.0,0.0776]
[1731273561051,0.126185,79249.0,79243.0,0.0776]
[1731273561250,0.00069189,79248.0,79244.0,0.19081178]
[1731273561473,0.023,79251.0,79243.0,0.0776]
[1731273561687,0.126187,79248.0,79243.0,0.0776]
[1731273561886,0.126192,79244.0,79243.0,0.0776]
[1731273562104,0.27513421,79244.0,79243.0,0.0776]
[1731273562918,0.149184,79250.0,79243.0,0.1028679]
[1731273563136,0.023,79249.0,79243.0,0.1028679]
[1731273563305,0.023,79256.0,79243.0,0.1028679]
[1731273563542,0.023,79250.0,79243.0,0.1028679]
[1731273563716,0.00069189,79250.0,79247.0,0.126187]
[1731273563920,0.126184,79249.0,79243.0,0.1028679]
[1731273564129,0.126184,79249.0,79243.0,0.203793]
[1731273564130,0.00069189,79248.0,79243.0,0.203793]
[1731273564310,0.12594221,79247.0,79243.0,0.0776]
[1731273564509,0.126191,79245.0,79243.0,0.0776]
[1731273564714,0.02369189,79246.0,79243.0,0.0776]
[1731273564715,0.00069189,79244.0,79243.0,0.203794]
[1731273565044,0.023,79246.0,79245.0,0.12619]
[1731273565240,0.19081178,79271.0,79260.0,0.126167]
[1731273565444,0.00069189,79270.0,79260.0,0.126167]
[1731273565723,0.126156,79267.0,79260.0,0.126167]
[1731273565878,0.00069189,79266.0,79245.0,0.005]
[1731273566250,0.12594221,79265.0,79264.0,0.12616]
[1731273566380,0.12594221,79265.0,79264.0,0.1640097]
[1731273566719,0.12594221,79265.0,79264.0,0.12616]
[1731273567070,0.12594221,79265.0,79262.0,0.126163]
[1731273567271,0.00069189,79264.0,79256.0,0.252346]
[1731273567479,0.02369189,79264.0,79263.0,0.126162]
[1731273567684,0.023,79264.0,79263.0,0.126162]
[1731273568915,0.023,79264.0,79257.0,0.25234]
[1731273569238,0.023,79264.0,79183.0,0.06334372]
[1731273569239,0.126178,79253.0,79243.0,0.0776]
[1731273569441,0.252323,79264.0,79250.0,0.31699378]
[1731273569442,0.023,79251.0,79250.0,0.31699378]
[1731273569614,0.14894221,79251.0,79247.0,0.126187]
[1731273569816,0.14894221,79251.0,79243.0,0.0776]
[1731273569817,0.023,79249.0,79243.0,0.0776]
[1731273570023,0.252348,79256.0,79243.0,0.0776]
[1731273570024,0.023,79245.0,79243.0,0.0776]
[1731273570396,0.023,79243.0,79242.0,0.000839]
[1731273570598,0.27513621,79243.0,79242.0,0.000839]
[1731273571166,0.2758281,79243.0,79242.0,0.000839]
[1731273571375,0.2778281,79243.0,79242.0,0.000839]
[1731273571576,0.2758281,79243.0,79242.0,0.000839]
[1731273573251,0.1496341,79243.0,79242.0,0.000839]
[1731273573384,0.2758281,79243.0,79242.0,0.000839]
[1731273573615,0.1496341,79243.0,79242.0,0.000839]
[1731273573819,0.2758281,79243.0,79242.0,0.000839]
[1731273574055,0.1496341,79243.0,79242.0,0.000839]
[1731273574229,0.27513621,79243.0,79242.0,0.000839]
[1731273574844,0.2758281,79243.0,79242.0,0.000839]
[1731273575585,0.2778281,79243.0,79242.0,0.000839]
[1731273575949,0.2828281,79243.0,79242.0,0.000839]
[1731273576123,0.2758281,79243.0,79242.0,0.000839]
[1731273578262,0.2808281,79243.0,79242.0,0.000839]
[1731273578453,0.2828281,79243.0,79242.0,0.000839]
[1731273579183,0.2808281,79243.0,79242.0,0.000839]
[1731273579440,0.2758281,79243.0,79242.0,0.000839]
[1731273580022,0.1266341,79243.0,79242.0,0.000839]
[1731273580229,0.12594221,79243.0,79242.0,0.000839]
[1731273580623,0.1266341,79243.0,79242.0,0.000839]
[1731273580796,0.2528281,79243.0,79242.0,0.000839]
[1731273581374,0.1266341,79243.0,79242.0,0.000839]
[1731273581578,0.1496341,79243.0,79242.0,0.000839]
[1731273581723,0.2758281,79243.0,79242.0,0.000839]
[1731273583729,0.2258281,79243.0,79242.0,0.000839]
[1731273584220,0.2328281,79243.0,79242.0,0.000839]
[1731273584719,0.2428281,79243.0,79242.0,0.000839]
[1731273585422,0.2428281,79243.0,79242.0,0.100839]
[1731273586412,0.2408281,79243.0,79242.0,0.100839]
[1731273586634,0.2358281,79243.0,79242.0,0.100839]
[1731273587040,0.2258281,79243.0,79242.0,0.100839]
[1731273587417,0.0766341,79243.0,79242.0,0.100839]
[1731273587649,0.20213621,79243.0,79242.0,0.100839]
[1731273587843,0.2028281,79243.0,79242.0,0.100839]
[1731273588214,0.0766341,79243.0,79242.0,0.100839]
[1731273588407,0.07594221,79243.0,79242.0,0.100839]
[1731273588629,0.0766341,79243.0,79242.0,0.100839]
[1731273588870,0.0996341,79243.0,79242.0,0.100839]
[1731273589072,0.2258281,79243.0,79242.0,0.100839]
[1731273589330,0.0996341,79243.0,79242.0,0.100839]
[1731273590268,0.2258281,79243.0,79242.0,0.100839]
[1731273591002,0.2278281,79243.0,79242.0,0.100839]
[1731273591406,0.2258281,79243.0,79242.0,0.100839]
[1731273592372,0.0996341,79243.0,79242.0,0.1110906]
[1731273592760,0.0996341,79243.0,79242.0,0.2372856]
[1731273592975,0.07977339,79260.0,79244.0,0.252385]
[1731273592976,0.03738669,79256.0,79244.0,0.252385]
[1731273593098,0.19081178,79253.0,79245.0,0.04413146]
[1731273593304,0.1266341,79252.0,79244.0,0.252383]
[1731273593518,0.1266341,79252.0,79243.0,0.077]
[1731273593945,3.130024,79243.0,79242.0,0.26865097]
[1731273594104,3.130024,79243.0,79242.0,0.10872357]
[1731273594105,3.38216021,79243.0,79242.0,0.10872357]
[1731273594300,3.25596621,79243.0,79242.0,0.10872357]
[1731273594720,3.27896621,79243.0,79242.0,0.10872357]
[1731273595144,3.27896621,79243.0,79242.0,0.10892546]
[1731273595561,3.40516021,79243.0,79242.0,0.10892546]
[1731273596425,3.40516021,79243.0,79242.0,0.10104089]
[1731273596759,3.40683821,79243.0,79242.0,0.10104089]
[1731273597610,3.28064421,79243.0,79242.0,0.10104089]
[1731273597968,3.28064421,79243.0,79242.0,0.22723589]
[1731273598167,3.131702,79243.0,79242.0,0.58050514]
[1731273598357,3.131702,79243.0,79242.0,0.36072017]
[1731273598560,3.131702,79243.0,79242.0,0.37333381]
[1731273598954,3.131702,79243.0,79242.0,0.65921136]
[1731273599219,3.131702,79243.0,79242.0,0.66397621]
[1731273599541,3.09228998,79243.0,79242.0,0.67363497]
[1731273599656,1.25915234,79243.0,79242.0,0.67397621]
[1731273599857,0.19081178,79262.0,79261.0,0.126165]
[1731273600056,0.19081178,79262.0,79261.0,0.14666292]
[1731273600513,0.12594221,79262.0,79261.0,0.00788428]
[1731273600711,0.25210521,79262.0,79261.0,0.00788428]
[1731273600915,0.2527971,79262.0,79261.0,0.00788428]
[1731273601060,0.252335,79260.0,79247.0,0.126187]
[1731273601262,0.1266341,79259.0,79251.0,0.19081178]
[1731273601528,0.023,79258.0,79252.0,0.00788307]
[1731273601729,0.02369189,79257.0,79256.0,0.126173]
[1731273601942,0.44310778,79272.0,79256.0,0.126173]
[1731273601943,0.00069189,79271.0,79261.0,0.126164]
[1731273602162,0.00069189,79271.0,79256.0,0.29886898]
[1731273602163,0.19081178,79263.0,79262.0,0.00788307]
[1731273602361,0.12594221,79263.0,79262.0,0.13404607]
[1731273602581,0.12594221,79263.0,79262.0,0.1562152]
[1731273602783,0.12594221,79263.0,79262.0,0.0300522]
[1731273603343,0.14894221,79263.0,79262.0,0.0300522]
[1731273603543,0.14894221,79263.0,79262.0,0.1562152]
[1731273604018,0.14894221,79263.0,79262.0,0.0300522]
[1731273604554,0.27510421,79263.0,79262.0,0.00788307]
[1731273604758,0.2757961,79263.0,79262.0,0.00788307]
[1731273605048,0.252366,79250.0,79243.0,0.19081178]
[1731273605206,0.1496341,79249.0,79244.0,0.00788274]
[1731273605401,0.023,79247.0,79245.0,0.00788274]
[1731273605605,0.023,79245.0,79242.0,0.10080574]
[1731273605836,0.12594221,79246.0,79242.0,0.10080574]
[1731273605837,0.2758261,79244.0,79243.0,0.00788363]
[1731273606047,0.151194,79243.0,79242.0,0.10080574]
[1731273606260,0.28213621,79243.0,79242.0,0.10080574]
[1731273606459,0.2828281,79243.0,79242.0,0.10080574]
[1731273606678,0.2928281,79243.0,79242.0,0.10080574]
[1731273606889,0.37273621,79243.0,79242.0,0.10080574]
[1731273607767,0.017,79237.0,79236.0,0.000838]
[1731273607992,0.133227,79222.0,79221.0,0.00189259]
[1731273608191,0.2598611,79222.0,79221.0,0.00189259]
[1731273608540,0.2648611,79222.0,79221.0,0.00189259]
[1731273608971,0.2698611,79222.0,79221.0,0.00189259]
[1731273609201,0.36931491,79222.0,79221.0,0.00189259]
[1731273609387,0.138233,79218.0,79204.0,0.19081178]
[1731273609562,0.2528671,79218.0,79204.0,0.19081178]
[1731273609768,0.1496341,79218.0,79215.0,0.126238]
[1731273610098,0.00069189,79227.0,79221.0,0.126227]
[1731273610341,0.12594221,79226.0,79222.0,0.0127655]
[1731273610460,0.00069189,79225.0,79222.0,0.0127655]
[1731273610655,0.12594221,79224.0,79214.0,0.252478]
[1731273610911,0.00069189,79223.0,79216.0,0.126236]
[1731273611114,0.12594221,79222.0,79216.0,0.126236]
[1731273611269,0.00069189,79221.0,79220.0,0.12623]
[1731273611480,0.023,79221.0,79220.0,0.12623]
[1731273611680,0.00069189,79234.0,79229.0,0.126215]
[1731273611884,0.19081178,79230.0,79224.0,0.126223]
[1731273612104,0.1266341,79229.0,79224.0,0.126223]
[1731273612306,0.19081178,79228.0,79212.0,0.252484]
[1731273612527,0.126221,79226.0,79213.0,0.31705278]
[1731273612785,0.252416,79235.0,79207.0,0.334502]
[1731273612786,0.023,79223.0,79211.0,0.126243]
[1731273612957,0.023,79221.0,79212.0,0.19081178]
[1731273613131,0.023,79219.0,79207.0,0.077]
[1731273613329,0.1496341,79218.0,79207.0,0.077]
[1731273613536,0.1496341,79218.0,79213.0,0.126241]
[1731273613743,0.1496341,79218.0,79207.0,0.077]
[1731273614046,0.1496341,79218.0,79200.0,0.0486]
[1731273614047,0.46867888,79218.0,79200.0,0.0486]
[1731273614275,0.46867888,79218.0,79197.0,0.001428]
[1731273614276,0.28217521,79218.0,79197.0,0.001428]
[1731273614478,0.2808671,79218.0,79204.0,0.19081178]
[1731273614685,0.2828671,79218.0,79204.0,0.19081178]
[1731273614924,0.2808671,79218.0,79204.0,0.19081178]
[1731273615136,0.36064411,79218.0,79197.0,0.001428]
[1731273615377,0.28217521,79218.0,79197.0,0.001428]
[1731273615580,0.2808671,79218.0,79197.0,0.001428]
[1731273616435,0.2828671,79218.0,79197.0,0.001428]
[1731273616669,0.2808671,79218.0,79197.0,0.001428]
[1731273617280,0.2878671,79218.0,79197.0,0.001428]
[1731273617932,0.2928671,79218.0,79197.0,0.001428]
[1731273618152,0.29217521,79218.0,79197.0,0.001428]
[1731273618451,0.24217521,79218.0,79197.0,0.001428]
[1731273618656,0.2428671,79218.0,79197.0,0.001428]
[1731273618867,0.2408671,79218.0,79197.0,0.001428]
[1731273619334,0.2308671,79218.0,79197.0,0.001428]
[1731273619533,0.2408671,79218.0,79197.0,0.001428]
[1731273619698,0.2428671,79218.0,79197.0,0.001428]
[1731273619958,0.2408671,79218.0,79197.0,0.001428]
[1731273620177,0.2428671,79218.0,79197.0,0.001428]
[1731273620577,0.2328671,79218.0,79197.0,0.001428]
[1731273620797,0.2428671,79218.0,79197.0,0.001428]
[1731273621007,0.43672529,79218.0,79197.0,0.001428]
[1731273621270,0.4360334,79218.0,79197.0,0.001428]
[1731273621420,0.149265,79198.0,79197.0,0.19223978]
[1731273621620,0.2778991,79198.0,79197.0,0.19223978]
[1731273621823,0.2778991,79198.0,79197.0,0.001428]
[1731273622138,0.2758991,79198.0,79197.0,0.001428]
[1731273623928,0.1496341,79198.0,79197.0,0.001428]
[1731273624127,0.2758991,79198.0,79197.0,0.001428]
[1731273624571,0.1496341,79198.0,79197.0,0.001428]
[1731273624796,0.12594221,79198.0,79197.0,0.001428]
[1731273625086,0.00069189,79204.0,79199.0,0.252528]
[1731273625289,0.12594221,79209.0,79201.0,0.21978497]
[1731273625508,0.19081178,79231.0,79230.0,0.126214]
[1731273625954,0.00069189,79238.0,79237.0,0.126203]
[1731273626206,0.19081178,79239.0,79231.0,0.252426]
[1731273626402,0.00069189,79238.0,79232.0,0.03868874]
[1731273626624,0.31675399,79237.0,79230.0,0.1264]
[1731273626870,0.31675399,79237.0,79220.0,0.005]
[1731273626871,0.126218,79228.0,79220.0,0.19081178]
[1731273627079,0.252442,79226.0,79220.0,0.22950052]
[1731273627287,0.126224,79224.0,79212.0,0.02464207]
[1731273627536,0.1266341,79223.0,79218.0,0.126233]
[1731273627736,0.023,79222.0,79221.0,0.126228]
[1731273627987,0.14894221,79222.0,79221.0,0.126228]
[1731273628196,0.023,79222.0,79221.0,0.126228]
[1731273628405,0.023,79222.0,79221.0,0.1640979]
[1731273628614,0.00069189,79229.0,79219.0,0.126232]
[1731273628615,0.023,79226.0,79219.0,0.126232]
[1731273628818,0.00069189,79225.0,79214.0,0.12624]
[1731273629030,0.00069189,79225.0,79213.0,0.005]
[1731273629031,0.00069189,79229.0,79222.0,0.126226]
[1731273629242,0.023,79227.0,79222.0,0.164096]
[1731273629441,0.023,79225.0,79222.0,0.126226]
[1731273629681,0.00069189,79226.0,79222.0,0.126226]
[1731273629682,0.023,79226.0,79222.0,0.252452]
[1731273629923,0.023,79226.0,79225.0,0.126222]
[1731273630120,0.19081178,79247.0,79224.0,0.005]
[1731273630331,0.19081178,79239.0,79238.0,0.126202]
[1731273630788,0.00069189,79245.0,79238.0,0.126201]
[1731273630998,0.00069189,79245.0,79235.0,0.252413]
[1731273631202,0.252388,79243.0,79234.0,0.0495]
[1731273631456,0.1266341,79242.0,79234.0,0.0495]
[1731273631676,0.001678,79236.0,79234.0,0.0495]
[1731273631943,0.024678,79236.0,79235.0,0.126206]
[1731273632174,0.023,79235.0,79219.0,0.0495]
[1731273632377,0.023,79235.0,79224.0,0.19081178]
[1731273632378,0.1316341,79234.0,79224.0,0.19081178]
[1731273632586,0.023,79223.0,79216.0,0.19081178]
[1731273632793,0.023,79221.0,79218.0,0.04441298]
[1731273633005,0.023,79221.0,79208.0,0.19081178]
[1731273633006,0.023,79219.0,79208.0,0.19081178]
[1731273633292,0.1266341,79218.0,79217.0,0.127074]
[1731273633507,0.1496341,79218.0,79217.0,0.000839]
[1731273633929,0.1496341,79218.0,79217.0,0.127074]
[1731273634174,0.14894221,79218.0,79217.0,0.1727189]
[1731273634387,0.023,79230.0,79217.0,0.0464839]
[1731273634622,0.001678,79236.0,79229.0,0.21978497]
[1731273634859,0.001678,79236.0,79235.0,0.126206]
[1731273635612,0.00502489,79236.0,79235.0,0.18701604]
[1731273635808,0.00402489,79236.0,79235.0,0.18701604]
[1731273636068,0.000678,79236.0,79235.0,0.18701604]
[1731273636443,0.000678,79236.0,79235.0,0.16802948]
[1731273636638,0.000678,79236.0,79235.0,0.34432948]
[1731273637429,0.000678,79236.0,79235.0,0.48027169]
[1731273637624,0.000678,79236.0,79235.0,0.48527169]
[1731273637919,0.000678,79236.0,79235.0,0.34432948]
[1731273638205,0.000678,79236.0,79235.0,0.35932948]
[1731273639990,0.19081178,79249.0,79246.0,0.005]
[1731273640196,0.19081178,79249.0,79248.0,0.44597097]
[1731273640603,0.19248978,79258.0,79249.0,0.1]
[1731273640819,0.19248978,79258.0,79257.0,0.126171]
[1731273641225,0.001678,79258.0,79257.0,0.126171]
[1731273641991,0.023,79257.0,79252.0,0.252359]
[1731273642158,0.023,79257.0,79256.0,0.126173]
[1731273644492,0.14894221,79257.0,79256.0,0.126173]
[1731273644915,0.15121894,79257.0,79247.0,0.04021325]
[1731273645117,0.023,79255.0,79242.0,0.1]
[1731273645313,0.023,79253.0,79252.0,0.126178]
[1731273645538,0.001678,79258.0,79252.0,0.0486]
[1731273645738,0.19081178,79279.0,79266.0,0.01]
[1731273645936,0.19081178,79279.0,79276.0,0.34592597]
[1731273646347,0.19081178,79293.0,79276.0,0.37080748]
[1731273646668,0.19081178,79293.0,79292.0,0.126116]
[1731273646959,0.19081178,79301.0,79292.0,0.21978497]
[1731273647174,0.12594221,79300.0,79285.0,0.0763]
[1731273647387,0.12594221,79300.0,79286.0,0.00913]
[1731273647517,0.00226554,79299.0,79288.0,0.252244]
[1731273647716,0.12594221,79298.0,79291.0,0.126117]
[1731273648036,0.25204821,79298.0,79291.0,0.126117]
[1731273648239,0.25204821,79298.0,79283.0,0.252259]
[1731273648240,0.023,79296.0,79276.0,0.24466648]
[1731273648439,0.00225918,79297.0,79276.0,0.24466648]
[1731273648440,0.023,79292.0,79285.0,0.19081178]
[1731273648649,0.023,79290.0,79285.0,0.126126]
[1731273648848,0.12817594,79289.0,79285.0,0.126126]
[1731273649047,0.12817594,79289.0,79281.0,0.3784]
[1731273649343,0.12594221,79289.0,79282.0,0.126131]
[1731273649556,0.12594221,79289.0,79281.0,0.02488151]
[1731273649779,0.00223055,79288.0,79286.0,0.126124]
[1731273649994,0.12594221,79287.0,79286.0,0.126125]
[1731273650197,0.00222737,79287.0,79286.0,0.16205353]
[1731273650404,0.006676,79307.0,79286.0,0.03592853]
[1731273650405,0.023,79300.0,79286.0,0.03592853]
[1731273650609,0.023,79298.0,79289.0,0.252241]
[1731273650827,0.12594221,79297.0,79289.0,0.252241]
[1731273651032,0.12594221,79297.0,79293.0,0.126113]
[1731273651033,0.023,79296.0,79293.0,0.126113]
[1731273651224,0.00225918,79297.0,79296.0,0.126109]
[1731273651407,0.001676,79304.0,79294.0,0.378335]
[1731273651408,0.00878291,79295.0,79294.0,0.378335]
[1731273651634,0.31675399,79303.0,79297.0,0.126108]
[1731273651849,0.31675399,79303.0,79294.0,0.252223]
[1731273652031,0.12594221,79303.0,79295.0,0.03634339]
[1731273652285,0.15165958,79316.0,79300.0,0.21978497]
[1731273652509,0.25202221,79315.0,79301.0,0.02446665]
[1731273652736,0.15165958,79316.0,79297.0,0.126107]
[1731273652737,0.126095,79305.0,79297.0,0.126107]
[1731273652937,0.12594221,79304.0,79298.0,0.19081178]
[1731273653177,0.12854381,79304.0,79288.0,0.252243]
[1731273653409,0.12854381,79304.0,79288.0,0.252244]
[1731273653621,0.12594221,79304.0,79288.0,0.252244]
[1731273653834,0.00259842,79303.0,79298.0,0.126105]
[1731273654046,0.12594221,79302.0,79301.0,0.126101]
[1731273654254,0.12594221,79302.0,79301.0,0.0126101]
[1731273654476,0.12853745,79302.0,79301.0,0.0126101]
[1731273654763,0.12853745,79302.0,79293.0,0.0078781]
[1731273654967,0.12853745,79302.0,79288.0,0.26012252]
[1731273655176,0.126102,79301.0,79292.0,0.126115]
[1731273655386,0.25204421,79301.0,79293.0,0.126113]
[1731273655622,0.0045693,79300.0,79287.0,0.19081178]
[1731273655838,0.0045693,79300.0,79290.0,0.126117]
[1731273656083,0.001676,79300.0,79290.0,0.126117]
[1731273656294,0.001676,79300.0,79287.0,0.19081178]
[1731273656295,0.00289012,79299.0,79292.0,0.126114]
[1731273656534,0.00289012,79299.0,79284.0,0.1]
[1731273656535,0.252225,79294.0,79284.0,0.1]
[1731273656772,0.12594221,79294.0,79286.0,0.23274807]
[1731273656993,0.00287103,79293.0,79282.0,0.1]
[1731273657232,0.00287103,79293.0,79285.0,0.126125]
[1731273657462,0.00287103,79293.0,79286.0,0.00787903]
[1731273657687,0.00287103,79293.0,79280.0,0.02523973]
[1731273657924,0.00287103,79293.0,79281.0,0.26014403]
[1731273658133,0.12594221,79294.0,79285.0,0.126127]
[1731273658345,0.00974658,79292.0,79286.0,0.00787903]
[1731273658666,0.12594221,79294.0,79287.0,0.00787903]
[1731273658769,0.00974218,79291.0,79287.0,0.00787868]
[1731273659004,0.12094221,79294.0,79287.0,0.00787868]
[1731273659005,0.12594221,79290.0,79287.0,0.00787868]
[1731273659221,0.001676,79300.0,79287.0,0.00787868]
[1731273659222,0.001676,79300.0,79299.0,0.126104]
[1731273659442,0.2,79316.0,79308.0,0.12609]
[1731273659443,0.19081178,79309.0,79308.0,0.12609]
[1731273659656,0.19081178,79309.0,79308.0,0.020486]
[1731273659870,0.19081178,79309.0,79308.0,0.012609]
[1731273660094,0.326078,79316.0,79308.0,0.012609]
[1731273660316,0.126082,79313.0,79308.0,0.012609]
[1731273660570,0.12594221,79312.0,79300.0,0.19868908]
[1731273660811,0.000714,79323.0,79301.0,0.0078773]
[1731273661053,0.126078,79316.0,79306.0,0.126092]
[1731273661314,0.12594221,79315.0,79302.0,0.03663666]
[1731273661530,0.12594221,79315.0,79309.0,0.252178]
[1731273661746,0.12594221,79315.0,79310.0,0.02417338]
[1731273661961,0.12594221,79315.0,79310.0,0.03204987]
[1731273662175,0.25202221,79315.0,79310.0,0.02417338]
[1731273662663,0.25202221,79315.0,79305.0,0.00787661]
[1731273662664,0.12594221,79315.0,79305.0,0.00787661]
[1731273662870,0.12594221,79315.0,79300.0,0.41059675]
[1731273662871,0.023,79314.0,79303.0,0.04184443]
[1731273663110,0.126096,79305.0,79303.0,0.04184443]
[1731273663316,0.126096,79305.0,79300.0,0.19081178]
[1731273663317,0.126097,79304.0,79300.0,0.19081178]
[1731273663529,0.12594221,79313.0,79301.0,0.19081178]
[1731273663790,0.252191,79305.0,79292.0,0.21978497]
[1731273664005,0.126104,79300.0,79288.0,0.126121]
[1731273664220,0.126104,79300.0,79284.0,0.21978497]
[1731273664221,0.023,79298.0,79292.0,0.19081178]
[1731273664425,0.126116,79292.0,79282.0,0.19081178]
[1731273664671,0.37815821,79297.0,79284.0,0.02572018]
[1731273664963,0.252225,79294.0,79284.0,0.02572018]
[1731273665150,0.12594221,79294.0,79285.0,0.0216532]
[1731273665611,0.252232,79292.0,79282.0,0.04193045]
[1731273665811,0.12613,79283.0,79282.0,0.04193045]
[1731273666069,0.126134,79281.0,79278.0,0.19164978]
[1731273666317,0.149136,79279.0,79278.0,0.000838]
[1731273666523,0.27507821,79279.0,79278.0,0.000838]
[1731273666738,0.25896239,79279.0,79278.0,0.000838]
[1731273668470,0.26096239,79279.0,79278.0,0.000838]
[1731273668679,0.29896239,79279.0,79278.0,0.000838]
[1731273668908,0.25896239,79279.0,79278.0,0.000838]
[1731273669628,0.00688418,79279.0,79278.0,0.000838]
[1731273669850,0.00688418,79279.0,79278.0,0.34676097]
[1731273670067,0.2,79298.0,79278.0,0.22062297]
[1731273670318,0.19081178,79293.0,79292.0,0.34590097]
[1731273670574,0.19081178,79293.0,79291.0,0.0779]
[1731273670833,0.1473628,79301.0,79297.0,0.126107]
[1731273671067,0.12594221,79300.0,79285.0,0.19081178]
[1731273671277,0.12594221,79300.0,79293.0,0.19081178]
[1731273671549,0.12594221,79300.0,79288.0,0.252243]
[1731273671704,0.12594221,79300.0,79290.0,0.126118]
[1731273671920,0.44299278,79309.0,79285.0,0.19081178]
[1731273671921,0.19081178,79309.0,79296.0,0.126108]
[1731273672099,0.19081178,79301.0,79295.0,0.126111]
[1731273672461,0.126093,79307.0,79295.0,0.126111]
[1731273672616,0.19081178,79301.0,79284.0,0.19081178]
[1731273672818,0.12594221,79300.0,79284.0,0.19081178]
[1731273673000,0.12594221,79300.0,79285.0,0.02548118]
[1731273673440,0.19081178,79299.0,79285.0,0.02548118]
[1731273673804,0.002,79294.0,79278.0,0.000838]
[1731273674010,0.126119,79290.0,79286.0,0.19081178]
[1731273674204,0.126125,79286.0,79278.0,0.000838]
[1731273674440,0.12594221,79285.0,79279.0,0.01916498]
[1731273674841,0.12594221,79285.0,79279.0,0.14530098]
[1731273675046,0.12613,79283.0,79279.0,0.01916498]
[1731273675247,0.12594221,79285.0,79278.0,0.000838]
[1731273675248,0.12594221,79285.0,79278.0,0.253114]
[1731273675374,0.12594221,79285.0,79278.0,0.126975]
[1731273675578,0.12594221,79285.0,79279.0,0.126136]
[1731273675798,0.12594221,79285.0,79278.0,0.000838]
[1731273675978,0.12594221,79285.0,79279.0,0.252273]
[1731273676185,0.12594221,79285.0,79281.0,0.126132]
[1731273676759,0.12594221,79285.0,79278.0,0.000838]
[1731273676971,0.2,79308.0,79283.0,0.21978497]
[1731273677186,0.19081178,79300.0,79292.0,0.252231]
[1731273677413,0.19081178,79300.0,79292.0,0.126115]
[1731273677621,0.19081178,79300.0,79294.0,0.126112]
[1731273677830,0.19081178,79300.0,79293.0,0.126113]